fUSD/lending_fUSD_20250215
["ID","MTS","AMOUNT","RATE_DAILY","PERIOD"]
[353187998,1739638232454,-1005.14,0.00010472,2]
[353187999,1739638232465,-157.0,0.0001063,2]
[353188000,1739638232474,-150.0,0.00010779,2]
[353188001,1739638232484,-150.0,0.00010779,2]
[353188002,1739638232493,-509.12662764,0.00010857,2]
[353188003,1739638232502,-150.0,0.00010894,2]
[353188004,1739638232512,-150.0,0.00010895,2]
[353188005,1739638232521,-150.0,0.00010897,2]
[353188006,1739638232530,-150.0,0.00010897,2]
[353188007,1739638232540,-150.0,0.00010899,2]
[353188008,1739638232549,-150.0,0.000109,2]
[353188009,1739638232559,-183.41967617,0.000109,2]
[353188010,1739638232568,-150.0,0.00010901,2]
[353188011,1739638232578,-150.0,0.0001093,2]
[353188012,1739638232587,-150.0,0.00010937,2]
[353188013,1739638232596,-150.0,0.00010946,2]
[353188014,1739638232606,-150.0,0.00010953,2]
[353188015,1739638232615,-31655.75506894,0.00010957,2]
[353188016,1739638232626,-34476.09660372,0.00010957,2]
[353188017,1739638232636,-7999.73458181,0.00010957,2]
[353188292,1739638238015,-43481.63903613,0.00010957,2]
[353188293,1739638238069,-766.29213403,0.00010957,2]
[353188297,1739638240046,-434.71481276,0.00010957,2]
[353188298,1739638240255,-374.07477111,0.00010957,2]
[353188558,1739638243024,-33.75456183,0.00010957,2]
[353188560,1739638243038,-522.8,0.00010957,2]
[353188571,1739638243145,-346.98461568,0.00010957,2]
[353188673,1739638245870,-3000.0,0.00010957,2]
[353188675,1739638245930,-281.8745621,0.00010957,2]
[353188677,1739638245942,-37635.00572915,0.00010957,2]
[353188678,1739638245980,-271.1,0.00010957,2]
[353188679,1739638245992,-260.74,0.00010957,2]
[353188680,1739638246191,-696.054795,0.00010957,2]
[353188688,1739638290721,150.0,0.00018101,120]
[353188689,1739638350746,150.0,0.00017946,120]
[353188690,1739638357938,2167.730399,8.807e-05,2]
[353188691,1739638411267,150.0,0.00015478,120]
[353188692,1739638470711,150.0,0.0001964,120]
[353188693,1739638562749,20791.10115802,0.0002063,120]
[353188694,1739638650759,150.0,0.0001985,120]
[353188695,1739638698229,1093.39,8.219e-05,2]
[353188696,1739638710728,150.0,0.00019475,120]
[353188700,1739638874887,500.0,0.0002,120]
[353188703,1739639367106,-4967.381958,8.836e-05,2]
[353188704,1739639390368,722.18,8.804e-05,2]
[353188705,1739639425522,1804.215058,8.791e-05,2]
[353188710,1739639432123,-2154.455242,8.836e-05,2]
[353188711,1739639432133,-526.68247118,8.836e-05,2]
[353188712,1739639432145,-3113.67752882,8.836e-05,2]
[353188713,1739639432155,-3879.27884113,8.836e-05,2]
[353188714,1739639432165,-338.81283059,8.836e-05,2]
[353188715,1739639432174,-150.0,8.849e-05,2]
[353188716,1739639432183,-115.0019195,8.85e-05,2]
[353188717,1739639432195,-884.9980805,8.85e-05,2]
[353188718,1739639432204,-2561.21463689,8.85e-05,2]
[353188719,1739639432216,-259.71141455,8.85e-05,2]
[353188720,1739639432228,-5128.4343372,8.85e-05,2]
[353188721,1739639432247,-427.08302947,8.85e-05,2]
[353188722,1739639432287,-924.92972861,8.85e-05,2]
[353188723,1739639432299,-1202.03568748,8.85e-05,2]
[353188724,1739639432346,-764.93069256,8.85e-05,2]
[353188725,1739639432358,-2416.1,8.85e-05,2]
[353188727,1739639432455,-1250.96724705,8.85e-05,2]
[353188729,1739639432467,-35064.59322619,8.85e-05,2]
[353188731,1739639432477,-500.0,8.851e-05,2]
[353188733,1739639432487,-1000.0,8.851e-05,2]
[353188735,1739639432496,-2228.5575,8.851e-05,2]
[353188736,1739639432506,-2000.0,8.868e-05,2]
[353188738,1739639432516,-256.57,8.888e-05,2]
[353188740,1739639432526,-150.0,8.949e-05,2]
[353188743,1739639432535,-500.0,8.972e-05,2]
[353188745,1739639432545,-1800.0,8.972e-05,2]
[353188747,1739639432554,-1800.0,8.972e-05,2]
[353188748,1739639432563,-28613.2334,8.973e-05,2]
[353188750,1739639432572,-5000.0,8.973e-05,2]
[353188752,1739639432582,-509.12662764,8.973e-05,2]
[353188754,1739639432591,-164.85,9.134e-05,2]
[353188756,1739639432601,-335.97,9.17e-05,2]
[353188758,1739639432610,-335.97,9.172e-05,2]
[353188760,1739639432619,-335.97,9.175e-05,2]
[353188763,1739639432629,-335.97,9.177e-05,2]
[353188765,1739639432638,-335.97,9.179e-05,2]
[353188769,1739639432648,-335.97,9.182e-05,2]
[353188771,1739639432657,-335.97,9.184e-05,2]
[353188774,1739639432666,-335.97,9.187e-05,2]
[353188776,1739639432675,-335.97,9.189e-05,2]
[353188778,1739639432684,-335.97,9.191e-05,2]
[353188780,1739639432693,-335.97,9.194e-05,2]
[353188782,1739639432702,-335.97,9.196e-05,2]
[353188784,1739639432712,-335.97,9.199e-05,2]
[353188786,1739639432721,-335.97,9.201e-05,2]
[353188788,1739639432730,-335.97,9.204e-05,2]
[353188790,1739639432739,-335.97,9.206e-05,2]
[353188792,1739639432748,-335.97,9.208e-05,2]
[353188795,1739639432757,-335.97,9.211e-05,2]
[353188798,1739639432767,-335.97,9.213e-05,2]
[353188801,1739639432780,-335.97,9.216e-05,2]
[353188803,1739639432789,-2491.64,9.305e-05,2]
[353188805,1739639432799,-461.18,9.327e-05,2]
[353188807,1739639432808,-1500.0,9.329e-05,2]
[353188809,1739639432818,-300.0,9.357e-05,2]
[353188811,1739639432828,-150.0,9.402e-05,2]
[353188813,1739639432837,-23900.0,9.421e-05,2]
[353188815,1739639432847,-186.33,9.453e-05,2]
[353188817,1739639432857,-32200.89,9.474e-05,2]
[353188819,1739639432866,-920.03,9.497e-05,2]
[353188821,1739639432876,-8900.20977035,9.501e-05,2]
[353188823,1739639432885,-1000.0,9.533e-05,2]
[353188825,1739639432894,-1852.42,9.555e-05,2]
[353188827,1739639432903,-1334.93,9.562e-05,2]
[353188829,1739639432912,-157.98,9.574e-05,2]
[353188831,1739639432921,-200.0,9.574e-05,2]
[353188833,1739639432931,-2000.0,9.6e-05,2]
[353188835,1739639432939,-3675.11,9.631e-05,2]
[353188837,1739639432949,-2639.56,9.647e-05,2]
[353188839,1739639432958,-461.72,9.647e-05,2]
[353188841,1739639432967,-255.0,9.734e-05,2]
[353188843,1739639432977,-200.0,9.777e-05,2]
[353188845,1739639432986,-150.0,9.82e-05,2]
[353188847,1739639432996,-150.0,9.863e-05,2]
[353188849,1739639433007,-150.0,9.863e-05,2]
[353188851,1739639433015,-150.0,9.863e-05,2]
[353188853,1739639433025,-950.18,9.961e-05,2]
[353188855,1739639433035,-250.0,9.979e-05,2]
[353188857,1739639433045,-1000.0,0.00010007,2]
[353188859,1739639433056,-150.0,0.00010036,2]
[353188861,1739639433066,-150.0,0.00010036,2]
[353188863,1739639433076,-150.0,0.00010036,2]
[353188865,1739639433086,-282.07744858,0.00010036,2]
[353188867,1739639433096,-150.96917946,0.00010036,2]
[353188869,1739639433106,-172.548647,0.00010048,2]
[353188871,1739639433115,-504.68,0.00010068,2]
[353188873,1739639433125,-306.61,0.00010137,2]
[353188875,1739639433135,-150.0,0.0001016,2]
[353188877,1739639433145,-150.0,0.00010195,2]
[353188879,1739639433157,-574.43224396,0.00010222,2]
[353188880,1739639433167,-150.0,0.00010283,2]
[353188882,1739639433178,-903.33075625,0.00010315,2]
[353188884,1739639433188,-500.0,0.00010342,2]
[353188886,1739639433198,-1800.0,0.00010342,2]
[353188888,1739639433208,-1800.0,0.00010342,2]
[353188890,1739639433218,-150.0,0.00010354,2]
[353188892,1739639433227,-150.0,0.00010407,2]
[353188894,1739639433237,-150.0,0.00010407,2]
[353188896,1739639433247,-1093.39,0.00010455,2]
[353188897,1739639433257,-461.18,0.00010493,2]
[353188898,1739639433268,-150.0,0.00010514,2]
[353188899,1739639433277,-150.0,0.00010531,2]
[353188900,1739639433287,-246.78,0.00010552,2]
[353188901,1739639433297,-150.0,0.00010655,2]
[353188902,1739639433307,-150.0,0.00010673,2]
[353188903,1739639433317,-433.0,0.00010707,2]
[353188904,1739639433326,-1000.0,0.00010725,2]
[353188905,1739639433336,-157.98,0.0001077,2]
[353188906,1739639433346,-150.0,0.00010779,2]
[353188907,1739639433356,-150.0,0.00010779,2]
[353188908,1739639433366,-1600.0,0.000108,2]
[353188909,1739639433375,-807.89295138,0.0001082,2]
[353188910,1739639433385,-150.0,0.00010832,2]
[353188911,1739639433395,-314.38782196,0.00010858,2]
[353188912,1739639433405,-1000.0,0.000109,2]
[353188913,1739639433415,-150.0,0.00010903,2]
[353188914,1739639433425,-497.79,0.00010957,2]
[353188915,1739639433436,-75725.08735506,0.00010957,2]
[353188916,1739639433446,-2475.81128,0.00010957,2]
[353188917,1739639433456,-334.355567,0.00010958,2]
[353188918,1739639433466,-646.332284,0.00010958,2]
[353188919,1739639433476,-385.81,0.00010958,2]
[353188920,1739639433486,-150.905946,0.00010958,2]
[353188921,1739639433496,-150.036577,0.00010958,2]
[353188922,1739639433506,-159.222409,0.00010958,2]
[353188923,1739639433516,-500.0,0.00010958,2]
[353188924,1739639433526,-500.0,0.00010958,2]
[353188925,1739639433536,-155.513928,0.00010958,2]
[353188926,1739639433547,-500.0,0.00010958,2]
[353188927,1739639433557,-500.0,0.00010958,2]
[353188928,1739639433568,-500.0,0.00010958,2]
[353188929,1739639433577,-500.0,0.00010958,2]
[353188930,1739639433587,-500.0,0.00010958,2]
[353188931,1739639433597,-500.0,0.00010958,2]
[353188932,1739639433607,-162.247206,0.00010958,2]
[353188933,1739639433616,-500.0,0.00010958,2]
[353188934,1739639433626,-500.0,0.00010958,2]
[353188935,1739639433636,-155.314569,0.00010958,2]
[353188936,1739639433646,-500.0,0.00010958,2]
[353188937,1739639433658,-500.0,0.00010958,2]
[353188938,1739639433669,-159.716318,0.00010958,2]
[353188939,1739639433680,-500.0,0.00010958,2]
[353188940,1739639433689,-500.0,0.00010958,2]
[353188941,1739639433700,-155.509798,0.00010958,2]
[353188942,1739639433709,-500.0,0.00010958,2]
[353188943,1739639433719,-500.0,0.00010958,2]
[353188944,1739639433729,-500.0,0.00010958,2]
[353188945,1739639433739,-500.0,0.00010958,2]
[353188946,1739639433748,-500.0,0.00010958,2]
[353188947,1739639433758,-500.0,0.00010958,2]
[353188948,1739639433769,-500.0,0.00010958,2]
[353188949,1739639433781,-500.0,0.00010958,2]
[353188950,1739639433793,-500.0,0.00010958,2]
[353188951,1739639433803,-208.45,0.00010958,2]
[353188952,1739639433813,-611.16779421,0.00010958,2]
[353188953,1739639433823,-1611.31,0.00010958,2]
[353188954,1739639433833,-152.634281,0.00010958,2]
[353188955,1739639433843,-500.0,0.00010958,2]
[353188956,1739639433853,-500.0,0.00010958,2]
[353188957,1739639433864,-500.51325432,0.00010958,2]
[353188958,1739639433873,-500.0,0.00010958,2]
[353188959,1739639433882,-500.0,0.00010958,2]
[353188960,1739639433891,-500.0,0.00010958,2]
[353188961,1739639433901,-500.0,0.00010958,2]
[353188962,1739639433911,-500.0,0.00010958,2]
[353188963,1739639433921,-500.0,0.00010958,2]
[353188964,1739639433931,-249.11139155,0.00010958,2]
[353188965,1739639433940,-500.33690449,0.00010958,2]
[353188966,1739639433950,-500.0,0.00010958,2]
[353188967,1739639433960,-500.0,0.00010958,2]
[353188968,1739639433970,-500.0,0.00010958,2]
[353188969,1739639433980,-500.0,0.00010958,2]
[353188970,1739639433989,-500.0,0.00010958,2]
[353188971,1739639433998,-500.0,0.00010958,2]
[353188972,1739639434008,-500.0,0.00010958,2]
[353188973,1739639434017,-500.0,0.00010958,2]
[353188974,1739639434028,-500.0,0.00010958,2]
[353188975,1739639434037,-500.0,0.00010958,2]
[353188976,1739639434046,-500.0,0.00010958,2]
[353188977,1739639434055,-500.0,0.00010958,2]
[353188978,1739639434065,-500.0,0.00010958,2]
[353188979,1739639434074,-500.0,0.00010958,2]
[353188980,1739639434084,-502.82582375,0.00010958,2]
[353188981,1739639434094,-500.0,0.00010958,2]
[353188982,1739639434104,-649.25985775,0.00010958,2]
[353188983,1739639434113,-500.0,0.00010958,2]
[353188984,1739639434123,-500.0,0.00010958,2]
[353188985,1739639434133,-500.0,0.00010958,2]
[353188986,1739639434142,-500.0,0.00010958,2]
[353188987,1739639434151,-358.54825707,0.00010958,2]
[353188988,1739639434161,-500.0,0.00010958,2]
[353188989,1739639434171,-500.0,0.00010958,2]
[353188990,1739639434180,-500.0,0.00010958,2]
[353188991,1739639434190,-500.0,0.00010958,2]
[353188992,1739639434199,-598.38857285,0.00010958,2]
[353188993,1739639434209,-500.0,0.00010958,2]
[353188994,1739639434218,-500.0,0.00010958,2]
[353188995,1739639434227,-502.88093868,0.00010958,2]
[353188996,1739639434237,-500.0,0.00010958,2]
[353188997,1739639434246,-217.86466076,0.00010958,2]
[353188998,1739639434256,-500.0,0.00010958,2]
[353188999,1739639434266,-500.0,0.00010958,2]
[353189000,1739639434275,-500.0,0.00010958,2]
[353189001,1739639434285,-500.0,0.00010958,2]
[353189002,1739639434295,-500.0,0.00010958,2]
[353189003,1739639434304,-500.0,0.00010958,2]
[353189004,1739639434314,-500.0,0.00010958,2]
[353189005,1739639434323,-500.0,0.00010958,2]
[353189006,1739639434333,-500.0,0.00010958,2]
[353189007,1739639434342,-500.0,0.00010958,2]
[353189008,1739639434351,-500.61873143,0.00010958,2]
[353189009,1739639434361,-562.43837563,0.00010958,2]
[353189010,1739639434372,-500.0,0.00010958,2]
[353189011,1739639434381,-646.34,0.00010958,2]
[353189012,1739639434391,-500.0,0.00010958,2]
[353189013,1739639434401,-504.33478634,0.00010958,2]
[353189014,1739639434411,-500.0,0.00010958,2]
[353189015,1739639434421,-500.0,0.00010958,2]
[353189016,1739639434432,-501.25278451,0.00010958,2]
[353189017,1739639434441,-500.0,0.00010958,2]
[353189018,1739639434451,-549.67,0.00010958,2]
[353189019,1739639434461,-732.53,0.00010958,2]
[353189020,1739639434471,-500.0,0.00010958,2]
[353189021,1739639434480,-500.0,0.00010958,2]
[353189022,1739639434490,-500.0,0.00010958,2]
[353189023,1739639434498,-500.0,0.00010958,2]
[353189024,1739639434507,-500.0,0.00010958,2]
[353189025,1739639434517,-500.0,0.00010958,2]
[353189026,1739639434526,-500.0,0.00010958,2]
[353189027,1739639434536,-501.8576505,0.00010958,2]
[353189028,1739639434545,-500.0,0.00010958,2]
[353189029,1739639434554,-500.0,0.00010958,2]
[353189030,1739639434564,-500.0,0.00010958,2]
[353189031,1739639434573,-500.0,0.00010958,2]
[353189032,1739639434583,-500.0,0.00010958,2]
[353189033,1739639434592,-568.49,0.00010958,2]
[353189034,1739639434602,-500.0,0.00010958,2]
[353189035,1739639434611,-500.0,0.00010958,2]
[353189036,1739639434621,-500.0,0.00010958,2]
[353189037,1739639434630,-500.0,0.00010958,2]
[353189038,1739639434639,-500.0,0.00010958,2]
[353189039,1739639434648,-500.0,0.00010958,2]
[353189040,1739639434659,-500.0,0.00010958,2]
[353189041,1739639434668,-500.0,0.00010958,2]
[353189042,1739639434678,-500.0,0.00010958,2]
[353189043,1739639434687,-500.0,0.00010958,2]
[353189044,1739639434697,-500.0,0.00010958,2]
[353189045,1739639434706,-356.50007653,0.00010958,2]
[353189046,1739639434715,-500.0,0.00010958,2]
[353189047,1739639434905,-500.0,0.00010958,2]
[353189048,1739639434920,-501.42547574,0.00010958,2]
[353189049,1739639434929,-500.0,0.00010958,2]
[353189050,1739639434939,-500.0,0.00010958,2]
[353189051,1739639434949,-500.0,0.00010958,2]
[353189052,1739639434958,-501.67961428,0.00010958,2]
[353189053,1739639434967,-500.0,0.00010958,2]
[353189054,1739639434976,-500.0,0.00010958,2]
[353189055,1739639434985,-500.0,0.00010958,2]
[353189056,1739639434994,-500.0,0.00010958,2]
[353189057,1739639435003,-150.18534709,0.00010958,2]
[353189058,1739639435012,-501.15554484,0.00010958,2]
[353189059,1739639435021,-500.0,0.00010958,2]
[353189060,1739639435032,-500.0,0.00010958,2]
[353189061,1739639435049,-500.0,0.00010958,2]
[353189062,1739639435058,-500.0,0.00010958,2]
[353189063,1739639435067,-630.19,0.00010958,2]
[353189064,1739639435077,-500.0,0.00010958,2]
[353189065,1739639435086,-500.0,0.00010958,2]
[353189066,1739639435095,-500.0,0.00010958,2]
[353189067,1739639435104,-500.0,0.00010958,2]
[353189068,1739639435113,-500.0,0.00010958,2]
[353189069,1739639435122,-502.26121347,0.00010958,2]
[353189070,1739639435131,-500.0,0.00010958,2]
[353189071,1739639435140,-500.0,0.00010958,2]
[353189072,1739639435149,-502.23505563,0.00010958,2]
[353189073,1739639435159,-500.0,0.00010958,2]
[353189074,1739639435168,-500.0,0.00010958,2]
[353189075,1739639435177,-500.0,0.00010958,2]
[353189076,1739639435186,-725.51,0.00010958,2]
[353189077,1739639435195,-478.08234217,0.00010958,2]
[353189078,1739639435204,-500.0,0.00010958,2]
[353189079,1739639435213,-500.0,0.00010958,2]
[353189080,1739639435222,-500.0,0.00010958,2]
[353189081,1739639435232,-500.0,0.00010958,2]
[353189082,1739639435241,-500.0,0.00010958,2]
[353189083,1739639435250,-500.0,0.00010958,2]
[353189084,1739639435259,-500.0,0.00010958,2]
[353189085,1739639435268,-500.0,0.00010958,2]
[353189086,1739639435277,-500.0,0.00010958,2]
[353189087,1739639435286,-483.84043914,0.00010958,2]
[353189088,1739639435295,-500.0,0.00010958,2]
[353189089,1739639435304,-618.54,0.00010958,2]
[353189090,1739639435314,-500.0,0.00010958,2]
[353189091,1739639435324,-501.90569672,0.00010958,2]
[353189092,1739639435334,-500.0,0.00010958,2]
[353189093,1739639435345,-503.19526695,0.00010958,2]
[353189094,1739639435354,-500.0,0.00010958,2]
[353189095,1739639435363,-500.0,0.00010958,2]
[353189096,1739639435374,-500.0,0.00010958,2]
[353189097,1739639435383,-500.0,0.00010958,2]
[353189098,1739639435393,-500.0,0.00010958,2]
[353189099,1739639435402,-500.0,0.00010958,2]
[353189100,1739639435411,-500.0,0.00010958,2]
[353189101,1739639435420,-500.0,0.00010958,2]
[353189102,1739639435429,-500.0,0.00010958,2]
[353189103,1739639435439,-500.0,0.00010958,2]
[353189104,1739639435448,-500.0,0.00010958,2]
[353189105,1739639435457,-500.0,0.00010958,2]
[353189106,1739639435466,-500.0,0.00010958,2]
[353189107,1739639435475,-500.0,0.00010958,2]
[353189108,1739639435484,-500.0,0.00010958,2]
[353189109,1739639435494,-638.45391602,0.00010958,2]
[353189110,1739639435503,-532.29,0.00010958,2]
[353189111,1739639435513,-500.0,0.00010958,2]
[353189112,1739639435523,-500.0,0.00010958,2]
[353189113,1739639435532,-500.0,0.00010958,2]
[353189114,1739639435543,-500.0,0.00010958,2]
[353189115,1739639435554,-500.0,0.00010958,2]
[353189116,1739639435563,-500.0,0.00010958,2]
[353189117,1739639435573,-500.0,0.00010958,2]
[353189118,1739639435583,-500.0,0.00010958,2]
[353189119,1739639435593,-500.0,0.00010958,2]
[353189120,1739639435603,-500.0,0.00010958,2]
[353189121,1739639435613,-500.0,0.00010958,2]
[353189122,1739639435622,-500.0,0.00010958,2]
[353189123,1739639435632,-500.0,0.00010958,2]
[353189124,1739639435642,-578.78,0.00010958,2]
[353189125,1739639435652,-500.0,0.00010958,2]
[353189126,1739639435661,-192.84853407,0.00010958,2]
[353189127,1739639435671,-500.0,0.00010958,2]
[353189128,1739639435680,-500.0,0.00010958,2]
[353189129,1739639435689,-500.0,0.00010958,2]
[353189130,1739639435698,-500.0,0.00010958,2]
[353189131,1739639435708,-500.0,0.00010958,2]
[353189132,1739639435717,-500.0,0.00010958,2]
[353189133,1739639435727,-500.0,0.00010958,2]
[353189134,1739639435736,-607.26,0.00010958,2]
[353189135,1739639435745,-501.33360632,0.00010958,2]
[353189136,1739639435755,-500.0,0.00010958,2]
[353189137,1739639435764,-500.0,0.00010958,2]
[353189138,1739639435776,-500.0,0.00010958,2]
[353189139,1739639435785,-500.0,0.00010958,2]
[353189140,1739639435794,-500.0,0.00010958,2]
[353189141,1739639435803,-562.75,0.00010958,2]
[353189142,1739639435812,-153.35418015,0.00010958,2]
[353189143,1739639435822,-503.17843677,0.00010958,2]
[353189144,1739639435831,-500.0,0.00010958,2]
[353189145,1739639435840,-500.0,0.00010958,2]
[353189146,1739639435851,-500.0,0.00010958,2]
[353189147,1739639435860,-500.0,0.00010958,2]
[353189148,1739639435870,-500.0,0.00010958,2]
[353189149,1739639435880,-504.14008704,0.00010958,2]
[353189150,1739639435889,-500.0,0.00010958,2]
[353189151,1739639435898,-500.0,0.00010958,2]
[353189152,1739639435910,-500.0,0.00010958,2]
[353189153,1739639435920,-500.0,0.00010958,2]
[353189154,1739639435929,-500.0,0.00010958,2]
[353189155,1739639435939,-500.0,0.00010958,2]
[353189156,1739639435948,-611.03932591,0.00010958,2]
[353189157,1739639435958,-500.0,0.00010958,2]
[353189158,1739639435967,-500.0,0.00010958,2]
[353189159,1739639435976,-500.0,0.00010958,2]
[353189160,1739639435985,-500.0,0.00010958,2]
[353189161,1739639435994,-500.0,0.00010958,2]
[353189162,1739639436004,-500.0,0.00010958,2]
[353189163,1739639436014,-500.0,0.00010958,2]
[353189164,1739639436023,-500.0,0.00010958,2]
[353189165,1739639436033,-500.0,0.00010958,2]
[353189166,1739639436043,-500.0,0.00010958,2]
[353189167,1739639436052,-567.18,0.00010958,2]
[353189168,1739639436061,-859.11,0.00010958,2]
[353189169,1739639436071,-500.0,0.00010958,2]
[353189170,1739639436084,-500.0,0.00010958,2]
[353189171,1739639436094,-500.0,0.00010958,2]
[353189172,1739639436103,-500.0,0.00010958,2]
[353189173,1739639436113,-500.0,0.00010958,2]
[353189174,1739639436122,-500.0,0.00010958,2]
[353189175,1739639436131,-500.0,0.00010958,2]
[353189176,1739639436139,-500.0,0.00010958,2]
[353189177,1739639436150,-500.0,0.00010958,2]
[353189178,1739639436160,-500.0,0.00010958,2]
[353189179,1739639436170,-500.00461034,0.00010958,2]
[353189180,1739639436179,-500.0,0.00010958,2]
[353189181,1739639436188,-557.0574334,0.00010958,2]
[353189182,1739639436197,-501.94024397,0.00010958,2]
[353189183,1739639436206,-500.0,0.00010958,2]
[353189184,1739639436215,-500.0,0.00010958,2]
[353189185,1739639436224,-500.0,0.00010958,2]
[353189186,1739639436233,-500.0,0.00010958,2]
[353189187,1739639436242,-500.0,0.00010958,2]
[353189188,1739639436251,-502.53707953,0.00010958,2]
[353189189,1739639436261,-729.9,0.00010958,2]
[353189190,1739639436270,-500.0,0.00010958,2]
[353189191,1739639436280,-500.0,0.00010958,2]
[353189192,1739639436290,-500.0,0.00010958,2]
[353189193,1739639436299,-504.39950263,0.00010958,2]
[353189194,1739639436308,-500.0,0.00010958,2]
[353189195,1739639436317,-577.57,0.00010958,2]
[353189196,1739639436326,-500.0,0.00010958,2]
[353189197,1739639436334,-500.0,0.00010958,2]
[353189198,1739639436343,-500.0,0.00010958,2]
[353189199,1739639436352,-500.0,0.00010958,2]
[353189200,1739639436362,-500.0,0.00010958,2]
[353189201,1739639436371,-500.0,0.00010958,2]
[353189202,1739639436380,-500.0,0.00010958,2]
[353189203,1739639436390,-500.0,0.00010958,2]
[353189204,1739639436399,-500.0,0.00010958,2]
[353189205,1739639436409,-500.0,0.00010958,2]
[353189206,1739639436419,-500.0,0.00010958,2]
[353189207,1739639436428,-500.0,0.00010958,2]
[353189208,1739639436437,-500.0,0.00010958,2]
[353189209,1739639436446,-500.0,0.00010958,2]
[353189210,1739639436456,-500.0,0.00010958,2]
[353189211,1739639436465,-500.0,0.00010958,2]
[353189212,1739639436474,-500.0,0.00010958,2]
[353189213,1739639436483,-500.0,0.00010958,2]
[353189214,1739639436492,-500.0,0.00010958,2]
[353189215,1739639436501,-397.98018295,0.00010958,2]
[353189216,1739639436510,-500.0,0.00010958,2]
[353189217,1739639436519,-500.0,0.00010958,2]
[353189218,1739639436528,-500.0,0.00010958,2]
[353189219,1739639436537,-500.0,0.00010958,2]
[353189220,1739639436547,-500.0,0.00010958,2]
[353189221,1739639436558,-500.0,0.00010958,2]
[353189222,1739639436567,-500.0,0.00010958,2]
[353189223,1739639436577,-500.0,0.00010958,2]
[353189224,1739639436586,-500.0,0.00010958,2]
[353189225,1739639436596,-561.9,0.00010958,2]
[353189226,1739639436605,-500.0,0.00010958,2]
[353189227,1739639436615,-500.0,0.00010958,2]
[353189228,1739639436626,-500.0,0.00010958,2]
[353189229,1739639436635,-500.0,0.00010958,2]
[353189230,1739639436644,-500.0,0.00010958,2]
[353189231,1739639436655,-500.0,0.00010958,2]
[353189232,1739639436665,-500.0,0.00010958,2]
[353189233,1739639436674,-153.96410646,0.00010958,2]
[353189234,1739639436683,-500.0,0.00010958,2]
[353189235,1739639436693,-500.0,0.00010958,2]
[353189236,1739639436702,-500.0,0.00010958,2]
[353189237,1739639436711,-556.95,0.00010958,2]
[353189238,1739639436721,-500.0,0.00010958,2]
[353189239,1739639436730,-500.0,0.00010958,2]
[353189240,1739639436739,-500.0,0.00010958,2]
[353189241,1739639436749,-545.44737856,0.00010958,2]
[353189242,1739639436758,-500.0,0.00010958,2]
[353189243,1739639436768,-500.0,0.00010958,2]
[353189244,1739639436781,-500.0,0.00010958,2]
[353189245,1739639436790,-500.0,0.00010958,2]
[353189246,1739639436799,-500.0,0.00010958,2]
[353189247,1739639436809,-417.32985462,0.00010958,2]
[353189248,1739639436821,-500.0,0.00010958,2]
[353189249,1739639436830,-500.0,0.00010958,2]
[353189250,1739639436840,-500.0,0.00010958,2]
[353189251,1739639436850,-506.79,0.00010958,2]